[Event "Early-Titled-Tuesday-Blitz-February-13-2024"]
[Site "Chess.com"]
[Date "2024.02.13"]
[Round "9"]
[White "Durarbayli"]
[Black "Abund"]
[Result "1-0"]
[WhiteElo "2920"]
[BlackElo "2763"]
[TimeControl "180+1"]
[EndTime "9:48:30 PST"]
[Termination "Durarbayli won on time"]

1. e4 {[%clk 0:03:00.9]} 1... c6 {[%clk 0:03:00.2]} 2. d4 {[%clk 0:03:00.4]}
2... d5 {[%clk 0:03:01.1]} 3. exd5 {[%clk 0:03:01.3]} 3... cxd5 {[%clk
0:03:01.4]} 4. c4 {[%clk 0:03:02.2]} 4... Nf6 {[%clk 0:03:01.5]} 5. Nc3 {[%clk
0:03:02.8]} 5... Nc6 {[%clk 0:03:02.2]} 6. Nf3 {[%clk 0:03:03.1]} 6... a6 {[%clk
0:02:59.8]} 7. h3 {[%clk 0:03:02.5]} 7... g6 {[%clk 0:02:56]} 8. c5 {[%clk
0:03:02.4]} 8... Bf5 {[%clk 0:02:50.1]} 9. Bd3 {[%clk 0:03:02.2]} 9... Ne4
{[%clk 0:02:39.8]} 10. O-O {[%clk 0:03:01.8]} 10... Bg7 {[%clk 0:02:39.7]} 11.
Re1 {[%clk 0:02:58.6]} 11... O-O {[%clk 0:02:21.2]} 12. Be3 {[%clk 0:02:24.3]}
12... e5 {[%clk 0:01:50.5]} 13. Bxe4 {[%clk 0:02:18.1]} 13... dxe4 {[%clk
0:01:48.2]} 14. Nxe5 {[%clk 0:02:17.1]} 14... Nxe5 {[%clk 0:01:44.4]} 15. dxe5
{[%clk 0:02:18]} 15... Bxe5 {[%clk 0:01:42.6]} 16. Qb3 {[%clk 0:01:56.5]} 16...
Rb8 {[%clk 0:01:18.2]} 17. Red1 {[%clk 0:01:48]} 17... Qh4 {[%clk 0:01:17.8]}
18. Nd5 {[%clk 0:01:42.6]} 18... Be6 {[%clk 0:01:04.9]} 19. Rd2 {[%clk
0:01:28.2]} 19... Rfd8 {[%clk 0:01:03.8]} 20. Rad1 {[%clk 0:01:27.7]} 20... Kg7
{[%clk 0:01:02.9]} 21. Qa3 {[%clk 0:00:39.8]} 21... Qh5 {[%clk 0:00:52.8]} 22.
Qa4 {[%clk 0:00:28.6]} 22... Bxh3 {[%clk 0:00:29.1]} 23. Qxe4 {[%clk 0:00:21.6]}
23... Bg4 {[%clk 0:00:24.2]} 24. f3 {[%clk 0:00:21.3]} 24... Be6 {[%clk
0:00:19.1]} 25. Nf4 {[%clk 0:00:16.8]} 25... Bxf4 {[%clk 0:00:18.8]} 26. Rxd8
{[%clk 0:00:13.8]} 26... Qh2+ {[%clk 0:00:16.2]} 27. Kf1 {[%clk 0:00:13.9]}
27... Qh1+ {[%clk 0:00:10.2]} 28. Bg1 {[%clk 0:00:13.2]} 28... Bh2 {[%clk
0:00:08.2]} 29. Qd4+ {[%clk 0:00:12.5]} 29... f6 {[%clk 0:00:07.9]} 30. Rxb8
{[%clk 0:00:12.1]} 30... Bxb8 {[%clk 0:00:07]} 31. Qe4 {[%clk 0:00:06.7]} 31...
Bh2 {[%clk 0:00:03.7]} 32. Qe3 {[%clk 0:00:02.8]} 32... Bc4+ {[%clk 0:00:03.4]}
33. Kf2 {[%clk 0:00:03.4]} 33... Be5 {[%clk 0:00:02.5]} 34. Qe4 {[%clk
0:00:03.4]} 34... Qh6 {[%clk 0:00:01.3]} 35. Qxc4 {[%clk 0:00:03.4]} 1-0

[Event "Early-Titled-Tuesday-Blitz-February-13-2024"]
[Site "Chess.com"]
[Date "2024.02.13"]
[Round "9"]
[White "hsd2016"]
[Black "amanjazu"]
[Result "0-1"]
[WhiteElo "2341"]
[BlackElo "2522"]
[TimeControl "180+1"]
[EndTime "9:48:33 PST"]
[Termination "amanjazu won by resignation"]

1. e4 {[%clk 0:02:58.6]} 1... Nf6 {[%clk 0:02:58]} 2. e5 {[%clk 0:02:58.6]} 2...
Nd5 {[%clk 0:02:57.9]} 3. c4 {[%clk 0:02:59.4]} 3... Nb6 {[%clk 0:02:57.8]} 4.
d4 {[%clk 0:03:00.3]} 4... d6 {[%clk 0:02:58.4]} 5. f4 {[%clk 0:03:01.2]} 5...
dxe5 {[%clk 0:02:57.6]} 6. fxe5 {[%clk 0:02:58.9]} 6... Nc6 {[%clk 0:02:58.1]}
7. Be3 {[%clk 0:02:56]} 7... Bf5 {[%clk 0:02:58]} 8. Nc3 {[%clk 0:02:56.2]} 8...
e6 {[%clk 0:02:58]} 9. Nf3 {[%clk 0:02:52.8]} 9... Be7 {[%clk 0:02:58.1]} 10.
Be2 {[%clk 0:02:52.3]} 10... O-O {[%clk 0:02:58.5]} 11. O-O {[%clk 0:02:48.2]}
11... f6 {[%clk 0:02:59.1]} 12. exf6 {[%clk 0:02:32.3]} 12... Bxf6 {[%clk
0:02:58.7]} 13. a4 {[%clk 0:02:27.1]} 13... Bg4 {[%clk 0:02:57.6]} 14. a5 {[%clk
0:02:25.3]} 14... Bxf3 {[%clk 0:02:53.5]} 15. Rxf3 {[%clk 0:02:22.8]} 15... Nxd4
{[%clk 0:02:34.1]} 16. axb6 {[%clk 0:02:19.3]} 16... Nxf3+ {[%clk 0:02:31.6]}
17. Bxf3 {[%clk 0:02:20.2]} 17... axb6 {[%clk 0:02:29.5]} 18. Rxa8 {[%clk
0:02:05.5]} 18... Qxd1+ {[%clk 0:02:26.5]} 19. Nxd1 {[%clk 0:02:06.4]} 19...
Rxa8 {[%clk 0:02:26.5]} 20. Bxb7 {[%clk 0:02:05.8]} 20... Ra1 {[%clk 0:02:25.1]}
21. Bf3 {[%clk 0:02:05]} 21... Bxb2 {[%clk 0:02:23.5]} 22. Kf2 {[%clk
0:02:03.9]} 22... Be5 {[%clk 0:02:20.1]} 23. g3 {[%clk 0:01:48.7]} 23... Kf7
{[%clk 0:02:04.7]} 24. Kg2 {[%clk 0:01:31.2]} 24... Ra2+ {[%clk 0:01:59.7]} 25.
Nf2 {[%clk 0:01:29.3]} 25... c5 {[%clk 0:01:54.6]} 26. Kf1 {[%clk 0:01:14.2]}
26... Bd4 {[%clk 0:01:44.6]} 27. Bxd4 {[%clk 0:01:13]} 27... cxd4 {[%clk
0:01:45.5]} 28. Be2 {[%clk 0:01:05.6]} 28... Ke7 {[%clk 0:01:43.3]} 29. Ne4
{[%clk 0:01:05.2]} 29... Ra3 {[%clk 0:01:38.8]} 30. Kf2 {[%clk 0:01:00.2]} 30...
Re3 {[%clk 0:01:37.6]} 31. Nd2 {[%clk 0:00:58.2]} 31... Kd6 {[%clk 0:01:34.2]}
32. Nf1 {[%clk 0:00:40.7]} 32... Re5 {[%clk 0:01:23.6]} 33. Nd2 {[%clk
0:00:38.2]} 33... Re3 {[%clk 0:01:07.4]} 34. Nf3 {[%clk 0:00:29.4]} 34... Kc5
{[%clk 0:01:03.7]} 35. Ng5 {[%clk 0:00:13.9]} 35... h6 {[%clk 0:00:58.6]} 36.
Nf7 {[%clk 0:00:13]} 36... Rc3 {[%clk 0:00:55.7]} 37. Ne5 {[%clk 0:00:12.2]}
37... Kd6 {[%clk 0:00:51.8]} 38. Nf3 {[%clk 0:00:04.9]} 38... d3 {[%clk
0:00:37.7]} 39. Bf1 {[%clk 0:00:05]} 39... Kc5 {[%clk 0:00:32.9]} 40. Nd2 {[%clk
0:00:05.4]} 40... Kd4 {[%clk 0:00:30.7]} 41. Ke1 {[%clk 0:00:02]} 41... Rc1+
{[%clk 0:00:29.4]} 42. Kf2 {[%clk 0:00:02.6]} 42... Rc2 {[%clk 0:00:29.2]} 43.
Ke1 {[%clk 0:00:03.2]} 43... e5 {[%clk 0:00:26.5]} 44. Nf3+ {[%clk 0:00:02.3]}
44... Ke3 {[%clk 0:00:24]} 0-1

[Event "Early-Titled-Tuesday-Blitz-February-13-2024"]
[Site "Chess.com"]
[Date "2024.02.13"]
[Round "9"]
[White "InadaC"]
[Black "LangesNasenhaar"]
[Result "1-0"]
[WhiteElo "2222"]
[BlackElo "2423"]
[TimeControl "180+1"]
[EndTime "9:48:33 PST"]
[Termination "InadaC won on time"]

1. d4 {[%clk 0:02:51.1]} 1... g6 {[%clk 0:03:00.4]} 2. c4 {[%clk 0:02:50.4]}
2... Bg7 {[%clk 0:03:01]} 3. Nc3 {[%clk 0:02:50.2]} 3... c5 {[%clk 0:03:01.5]}
4. e3 {[%clk 0:02:47.3]} 4... cxd4 {[%clk 0:03:00.7]} 5. exd4 {[%clk 0:02:47.2]}
5... Nf6 {[%clk 0:03:01.6]} 6. Nf3 {[%clk 0:02:47.1]} 6... d5 {[%clk 0:03:01.8]}
7. Bg5 {[%clk 0:02:47.3]} 7... Ne4 {[%clk 0:02:57.3]} 8. Be3 {[%clk 0:02:42.7]}
8... Nxc3 {[%clk 0:02:53.5]} 9. bxc3 {[%clk 0:02:40.4]} 9... Qa5 {[%clk
0:02:53.8]} 10. Qc2 {[%clk 0:02:39.6]} 10... O-O {[%clk 0:02:44.2]} 11. cxd5
{[%clk 0:02:37.7]} 11... Qxd5 {[%clk 0:02:43.6]} 12. Bd3 {[%clk 0:02:36]} 12...
Nc6 {[%clk 0:02:40.2]} 13. O-O {[%clk 0:02:33.8]} 13... Bg4 {[%clk 0:02:39.5]}
14. Be4 {[%clk 0:02:33.4]} 14... Qa5 {[%clk 0:02:39.6]} 15. h3 {[%clk
0:02:30.3]} 15... Bd7 {[%clk 0:02:39.1]} 16. Rab1 {[%clk 0:02:24.4]} 16... Rab8
{[%clk 0:02:23.8]} 17. Bf4 {[%clk 0:02:21.9]} 17... e5 {[%clk 0:02:12.1]} 18.
dxe5 {[%clk 0:02:17.3]} 18... Be6 {[%clk 0:02:02.2]} 19. a4 {[%clk 0:02:03.3]}
19... Rfc8 {[%clk 0:01:39.8]} 20. Ng5 {[%clk 0:01:55.8]} 20... Bc4 {[%clk
0:01:36]} 21. Rfd1 {[%clk 0:01:53.2]} 21... Nxe5 {[%clk 0:01:31.5]} 22. Nf3
{[%clk 0:01:38.5]} 22... b6 {[%clk 0:00:58.9]} 23. Nd4 {[%clk 0:00:38.9]} 23...
Rc5 {[%clk 0:00:37.9]} 24. Bxe5 {[%clk 0:00:24.8]} 24... Bxe5 {[%clk 0:00:34.9]}
25. Nc6 {[%clk 0:00:24]} 25... Rxc6 {[%clk 0:00:29.2]} 26. Bxc6 {[%clk
0:00:23.7]} 26... Rc8 {[%clk 0:00:24.8]} 27. Bd7 {[%clk 0:00:20.4]} 27... Rc7
{[%clk 0:00:23.6]} 28. Qe4 {[%clk 0:00:20.5]} 28... Qxc3 {[%clk 0:00:19.7]} 29.
Rbc1 {[%clk 0:00:19.9]} 29... Qb2 {[%clk 0:00:06.1]} 30. Bb5 {[%clk 0:00:19.2]}
30... Bxb5 {[%clk 0:00:05.2]} 31. Rxc7 {[%clk 0:00:19]} 31... Bxc7 {[%clk
0:00:06.1]} 32. axb5 {[%clk 0:00:18.6]} 32... Kg7 {[%clk 0:00:05.2]} 33. Qd4+
{[%clk 0:00:18]} 33... Qxd4 {[%clk 0:00:04]} 34. Rxd4 {[%clk 0:00:18.6]} 34...
Be5 {[%clk 0:00:03.1]} 35. Rd7 {[%clk 0:00:18.8]} 35... Kf6 {[%clk 0:00:02.8]}
36. Rxa7 {[%clk 0:00:19]} 36... Bd4 {[%clk 0:00:03.7]} 37. Rc7 {[%clk 0:00:18]}
37... Ke6 {[%clk 0:00:02.7]} 38. Kf1 {[%clk 0:00:17.3]} 38... h5 {[%clk
0:00:02.7]} 39. Ke2 {[%clk 0:00:17.6]} 39... f5 {[%clk 0:00:02.8]} 40. f4 {[%clk
0:00:17.7]} 40... Bg1 {[%clk 0:00:02.3]} 41. Rc6+ {[%clk 0:00:17.3]} 41... Kf7
{[%clk 0:00:02.8]} 42. Kf3 {[%clk 0:00:17.6]} 42... Kg7 {[%clk 0:00:02.5]} 43.
g4 {[%clk 0:00:18.1]} 43... hxg4+ {[%clk 0:00:02.3]} 44. hxg4 {[%clk 0:00:18.7]}
44... fxg4+ {[%clk 0:00:03.2]} 45. Kxg4 {[%clk 0:00:19.1]} 45... Kh6 {[%clk
0:00:04.1]} 46. f5 {[%clk 0:00:19.5]} 1-0

[Event "Early-Titled-Tuesday-Blitz-February-13-2024"]
[Site "Chess.com"]
[Date "2024.02.13"]
[Round "9"]
[White "WhiteKnight2612"]
[Black "Sanan_Sjugirov"]
[Result "1-0"]
[WhiteElo "2887"]
[BlackElo "2985"]
[TimeControl "180+1"]
[EndTime "9:48:34 PST"]
[Termination "WhiteKnight2612 won on time"]

1. d4 {[%clk 0:03:00.9]} 1... Nf6 {[%clk 0:02:57.7]} 2. c4 {[%clk 0:02:58]} 2...
e6 {[%clk 0:02:57.6]} 3. Nc3 {[%clk 0:02:49.5]} 3... Bb4 {[%clk 0:02:56.9]} 4.
Qc2 {[%clk 0:02:38.7]} 4... O-O {[%clk 0:02:55.3]} 5. Nf3 {[%clk 0:02:35.4]}
5... d5 {[%clk 0:02:52.9]} 6. cxd5 {[%clk 0:02:36]} 6... exd5 {[%clk 0:02:53.7]}
7. Bg5 {[%clk 0:02:36.2]} 7... h6 {[%clk 0:02:50.1]} 8. Bxf6 {[%clk 0:02:35.7]}
8... Qxf6 {[%clk 0:02:51]} 9. e3 {[%clk 0:02:35.3]} 9... c6 {[%clk 0:02:49.3]}
10. a3 {[%clk 0:02:28.7]} 10... Bd6 {[%clk 0:02:48.2]} 11. Bd3 {[%clk
0:02:28.7]} 11... Bg4 {[%clk 0:02:46.8]} 12. Nd2 {[%clk 0:02:27.2]} 12... Re8
{[%clk 0:02:45.8]} 13. Ne2 {[%clk 0:02:24.4]} 13... Nd7 {[%clk 0:02:37.4]} 14.
h3 {[%clk 0:02:24.2]} 14... Be6 {[%clk 0:02:34.3]} 15. O-O {[%clk 0:02:17.1]}
15... c5 {[%clk 0:02:27.3]} 16. f4 {[%clk 0:01:50.6]} 16... Bxh3 {[%clk
0:01:59.8]} 17. gxh3 {[%clk 0:01:44.6]} 17... Rxe3 {[%clk 0:02:00.4]} 18. Nf3
{[%clk 0:01:43.2]} 18... Rae8 {[%clk 0:01:52.7]} 19. Rf2 {[%clk 0:01:39.8]}
19... g6 {[%clk 0:01:42.6]} 20. Ne5 {[%clk 0:01:25.4]} 20... Bxe5 {[%clk
0:01:07.4]} 21. fxe5 {[%clk 0:01:10.2]} 21... Qh4 {[%clk 0:01:04.3]} 22. Bxg6
{[%clk 0:01:03.5]} 22... Rxh3 {[%clk 0:00:57.6]} 23. Kf1 {[%clk 0:00:31.8]}
23... Rh1+ {[%clk 0:00:31.4]} 24. Ng1 {[%clk 0:00:32.2]} 24... Qh3+ {[%clk
0:00:31.5]} 25. Rg2 {[%clk 0:00:27.1]} 25... Qf3+ {[%clk 0:00:30.1]} 26. Rf2
{[%clk 0:00:20.7]} 26... Qh3+ {[%clk 0:00:28.3]} 27. Rg2 {[%clk 0:00:21.2]}
27... Kh8 {[%clk 0:00:12.8]} 28. Bf5 {[%clk 0:00:18.4]} 28... Qf3+ {[%clk
0:00:11.2]} 29. Rf2 {[%clk 0:00:19]} 29... Qg3 {[%clk 0:00:10.7]} 30. Rg2 {[%clk
0:00:18.9]} 30... Qf4+ {[%clk 0:00:08.6]} 31. Qf2 {[%clk 0:00:18]} 31... Qxf2+
{[%clk 0:00:02.5]} 32. Rxf2 {[%clk 0:00:18.9]} 32... Nb6 {[%clk 0:00:02.4]} 33.
dxc5 {[%clk 0:00:18.7]} 33... Nc4 {[%clk 0:00:02.8]} 34. Re1 {[%clk 0:00:17.9]}
34... d4 {[%clk 0:00:01.4]} 35. Kg2 {[%clk 0:00:15.8]} 35... Rh5 {[%clk
0:00:01.2]} 36. Bd3 {[%clk 0:00:15.1]} 36... Ne3+ {[%clk 0:00:01.1]} 37. Kf3
{[%clk 0:00:15.6]} 37... Rexe5 {[%clk 0:00:01.1]} 38. Ne2 {[%clk 0:00:15.2]}
38... Rh4 {[%clk 0:00:01.1]} 39. Ng3 {[%clk 0:00:15.1]} 1-0

[Event "Early-Titled-Tuesday-Blitz-February-13-2024"]
[Site "Chess.com"]
[Date "2024.02.13"]
[Round "9"]
[White "Mops_2004"]
[Black "Sanyura"]
[Result "0-1"]
[WhiteElo "2827"]
[BlackElo "2670"]
[TimeControl "180+1"]
[EndTime "9:48:34 PST"]
[Termination "Sanyura won by resignation"]

1. g3 {[%clk 0:03:00.9]} 1... Nf6 {[%clk 0:02:51.9]} 2. Bg2 {[%clk 0:03:00.9]}
2... g6 {[%clk 0:02:47.1]} 3. d4 {[%clk 0:03:00.5]} 3... Bg7 {[%clk 0:02:47.1]}
4. Nf3 {[%clk 0:02:59.8]} 4... d6 {[%clk 0:02:47.6]} 5. O-O {[%clk 0:02:59.9]}
5... O-O {[%clk 0:02:48.2]} 6. Re1 {[%clk 0:03:00.5]} 6... Nbd7 {[%clk
0:02:48.6]} 7. e4 {[%clk 0:03:00.6]} 7... e5 {[%clk 0:02:49.2]} 8. Nc3 {[%clk
0:03:01.3]} 8... exd4 {[%clk 0:02:49.3]} 9. Nxd4 {[%clk 0:03:01.3]} 9... Nc5
{[%clk 0:02:49.9]} 10. Nb3 {[%clk 0:02:59.8]} 10... Nxb3 {[%clk 0:02:43.4]} 11.
axb3 {[%clk 0:02:59.9]} 11... Re8 {[%clk 0:02:43.6]} 12. h3 {[%clk 0:02:56.1]}
12... Bd7 {[%clk 0:02:41.6]} 13. b4 {[%clk 0:02:51.6]} 13... a6 {[%clk
0:02:40.9]} 14. Be3 {[%clk 0:02:48.8]} 14... Bc6 {[%clk 0:02:40.2]} 15. Bd4
{[%clk 0:02:49]} 15... Nd7 {[%clk 0:02:35.8]} 16. f4 {[%clk 0:02:47.6]} 16...
Bxd4+ {[%clk 0:01:54.2]} 17. Qxd4 {[%clk 0:02:47.4]} 17... Qf6 {[%clk
0:01:54.6]} 18. Qf2 {[%clk 0:02:47]} 18... Nb6 {[%clk 0:01:41.7]} 19. Bf1 {[%clk
0:02:35.8]} 19... Re7 {[%clk 0:01:35.7]} 20. Kh2 {[%clk 0:02:00.5]} 20... Rae8
{[%clk 0:01:34.7]} 21. Bd3 {[%clk 0:02:01.2]} 21... h5 {[%clk 0:01:06.8]} 22.
Ra5 {[%clk 0:01:59]} 22... Qe6 {[%clk 0:00:55.1]} 23. Qd4 {[%clk 0:01:52.2]}
23... Nd7 {[%clk 0:00:46.3]} 24. b5 {[%clk 0:01:46.6]} 24... axb5 {[%clk
0:00:45.8]} 25. Bxb5 {[%clk 0:01:47.3]} 25... Qf6 {[%clk 0:00:33.9]} 26. Qe3
{[%clk 0:01:27.9]} 26... b6 {[%clk 0:00:15.7]} 27. Bxc6 {[%clk 0:01:22.5]} 27...
bxa5 {[%clk 0:00:15]} 28. Nd5 {[%clk 0:01:23.1]} 28... Qxb2 {[%clk 0:00:14.6]}
29. Nxe7+ {[%clk 0:00:36.1]} 29... Rxe7 {[%clk 0:00:14.1]} 30. Re2 {[%clk
0:00:28.4]} 30... Nc5 {[%clk 0:00:13.1]} 31. e5 {[%clk 0:00:27.1]} 31... a4
{[%clk 0:00:10.9]} 32. c3 {[%clk 0:00:22]} 32... Qb3 {[%clk 0:00:09.8]} 33. Qd4
{[%clk 0:00:22.3]} 33... a3 {[%clk 0:00:09.6]} 34. Bd5 {[%clk 0:00:22.7]} 34...
Qb1 {[%clk 0:00:08.3]} 35. Rf2 {[%clk 0:00:15.7]} 35... c6 {[%clk 0:00:05.8]}
36. exd6 {[%clk 0:00:15.3]} 36... Rd7 {[%clk 0:00:04.3]} 37. Bxc6 {[%clk
0:00:13.6]} 37... a2 {[%clk 0:00:04.6]} 38. c4 {[%clk 0:00:03.2]} 38... a1=Q
{[%clk 0:00:04.6]} 0-1

[Event "Early-Titled-Tuesday-Blitz-February-13-2024"]
[Site "Chess.com"]
[Date "2024.02.13"]
[Round "9"]
[White "starworld123"]
[Black "mishanick"]
[Result "0-1"]
[WhiteElo "2842"]
[BlackElo "2979"]
[TimeControl "180+1"]
[EndTime "9:48:35 PST"]
[Termination "mishanick won by resignation"]

1. Nf3 {[%clk 0:03:00.9]} 1... d5 {[%clk 0:02:52.3]} 2. e3 {[%clk 0:02:57.7]}
2... Nf6 {[%clk 0:02:51.7]} 3. b3 {[%clk 0:02:57.3]} 3... e6 {[%clk 0:02:51.1]}
4. Bb2 {[%clk 0:02:57.4]} 4... b6 {[%clk 0:02:51.7]} 5. Be2 {[%clk 0:02:43.7]}
5... Bb7 {[%clk 0:02:51.9]} 6. O-O {[%clk 0:02:44.2]} 6... Be7 {[%clk
0:02:52.2]} 7. d3 {[%clk 0:02:40]} 7... c5 {[%clk 0:02:51.2]} 8. Ne5 {[%clk
0:02:37.3]} 8... Nbd7 {[%clk 0:02:51.3]} 9. f4 {[%clk 0:02:35.8]} 9... O-O
{[%clk 0:02:51]} 10. Nd2 {[%clk 0:02:36.2]} 10... Nxe5 {[%clk 0:02:50.8]} 11.
fxe5 {[%clk 0:02:23.6]} 11... Nd7 {[%clk 0:02:51.1]} 12. Nf3 {[%clk 0:02:20.7]}
12... f5 {[%clk 0:02:51.4]} 13. exf6 {[%clk 0:02:21.6]} 13... Bxf6 {[%clk
0:02:51.2]} 14. Qc1 {[%clk 0:02:18.9]} 14... e5 {[%clk 0:02:45.2]} 15. Nd2
{[%clk 0:02:14.8]} 15... e4 {[%clk 0:02:31.6]} 16. dxe4 {[%clk 0:02:09.4]} 16...
dxe4 {[%clk 0:02:32.5]} 17. Nc4 {[%clk 0:02:03.9]} 17... Qe7 {[%clk 0:02:29.5]}
18. Bxf6 {[%clk 0:01:39]} 18... Nxf6 {[%clk 0:02:27.7]} 19. Qb2 {[%clk
0:01:37.1]} 19... Rad8 {[%clk 0:02:18.4]} 20. Qe5 {[%clk 0:01:24.9]} 20... Qxe5
{[%clk 0:01:43.1]} 21. Nxe5 {[%clk 0:01:25.8]} 21... Rfe8 {[%clk 0:01:22.4]} 22.
Ng4 {[%clk 0:00:54.2]} 22... Nd5 {[%clk 0:01:19.9]} 23. Bc4 {[%clk 0:00:48.2]}
23... h5 {[%clk 0:01:16.9]} 24. Nf2 {[%clk 0:00:41.7]} 24... Kh7 {[%clk
0:01:13.6]} 25. Bxd5 {[%clk 0:00:35.8]} 25... Bxd5 {[%clk 0:00:54.6]} 26. Rad1
{[%clk 0:00:36.1]} 26... g5 {[%clk 0:00:31]} 27. g4 {[%clk 0:00:25.2]} 27... Kg6
{[%clk 0:00:26.8]} 28. gxh5+ {[%clk 0:00:20.5]} 28... Kxh5 {[%clk 0:00:26.7]}
29. h3 {[%clk 0:00:18.9]} 29... Kh4 {[%clk 0:00:18.3]} 30. Kg2 {[%clk
0:00:17.9]} 30... Be6 {[%clk 0:00:17.3]} 31. Kh2 {[%clk 0:00:13.3]} 31... Rxd1
{[%clk 0:00:10.1]} 32. Rxd1 {[%clk 0:00:14.2]} 32... Rf8 {[%clk 0:00:10.3]} 33.
Nxe4 {[%clk 0:00:11.6]} 33... Bxh3 {[%clk 0:00:08.7]} 34. Rd6 {[%clk 0:00:08]}
34... Bf5 {[%clk 0:00:07.3]} 35. Rh6+ {[%clk 0:00:04.6]} 35... Kg4 {[%clk
0:00:07.5]} 36. Ng3 {[%clk 0:00:04.5]} 36... Bxc2 {[%clk 0:00:07]} 37. e4 {[%clk
0:00:04.8]} 37... Rf2+ {[%clk 0:00:06.5]} 0-1

[Event "Early-Titled-Tuesday-Blitz-February-13-2024"]
[Site "Chess.com"]
[Date "2024.02.13"]
[Round "9"]
[White "Chernov_Alexander_A"]
[Black "nfds"]
[Result "0-1"]
[WhiteElo "2296"]
[BlackElo "2484"]
[TimeControl "180+1"]
[EndTime "9:48:35 PST"]
[Termination "nfds won on time"]

1. d4 {[%clk 0:02:59.2]} 1... d6 {[%clk 0:02:53.5]} 2. e4 {[%clk 0:02:57.5]}
2... Nf6 {[%clk 0:02:53.4]} 3. Nc3 {[%clk 0:02:57.5]} 3... Nc6 {[%clk
0:02:49.5]} 4. h3 {[%clk 0:02:50.5]} 4... g6 {[%clk 0:02:46.8]} 5. Nf3 {[%clk
0:02:48.9]} 5... Bg7 {[%clk 0:02:46.6]} 6. Be2 {[%clk 0:02:45]} 6... O-O {[%clk
0:02:44.9]} 7. O-O {[%clk 0:02:45]} 7... a6 {[%clk 0:02:39.4]} 8. Be3 {[%clk
0:02:39.1]} 8... b5 {[%clk 0:02:35.3]} 9. a3 {[%clk 0:02:31.4]} 9... Bb7 {[%clk
0:02:32.8]} 10. d5 {[%clk 0:02:23.5]} 10... Nb8 {[%clk 0:02:27.5]} 11. Nd4
{[%clk 0:02:05.5]} 11... c6 {[%clk 0:02:23.5]} 12. dxc6 {[%clk 0:02:04.8]} 12...
Nxc6 {[%clk 0:02:23.2]} 13. f3 {[%clk 0:02:00.1]} 13... Rc8 {[%clk 0:02:21.7]}
14. Qd2 {[%clk 0:01:57.1]} 14... Ne5 {[%clk 0:02:15.1]} 15. Rfc1 {[%clk
0:01:54.9]} 15... Nc4 {[%clk 0:02:03.3]} 16. Bxc4 {[%clk 0:01:54.4]} 16... Rxc4
{[%clk 0:02:04.2]} 17. Nce2 {[%clk 0:01:47.9]} 17... Qd7 {[%clk 0:01:50.8]} 18.
c3 {[%clk 0:01:45.6]} 18... Rd8 {[%clk 0:01:42.2]} 19. Rd1 {[%clk 0:01:30.4]}
19... Qc7 {[%clk 0:01:17.8]} 20. b3 {[%clk 0:01:15.6]} 20... Rc5 {[%clk
0:01:16.4]} 21. Nc2 {[%clk 0:01:06.2]} 21... Re5 {[%clk 0:00:53]} 22. Bd4 {[%clk
0:00:57.5]} 22... Rh5 {[%clk 0:00:42]} 23. Ng3 {[%clk 0:00:52.4]} 23... Bh6
{[%clk 0:00:40.8]} 24. Qd3 {[%clk 0:00:42.5]} 24... Rg5 {[%clk 0:00:37.8]} 25.
Ne2 {[%clk 0:00:35.1]} 25... Nd7 {[%clk 0:00:26.2]} 26. f4 {[%clk 0:00:32.7]}
26... Nc5 {[%clk 0:00:22.2]} 27. Qe3 {[%clk 0:00:24]} 27... Rxg2+ {[%clk
0:00:16.7]} 28. Kxg2 {[%clk 0:00:22.8]} 28... Nxe4 {[%clk 0:00:17.6]} 29. Kh2
{[%clk 0:00:22]} 29... Re8 {[%clk 0:00:15.2]} 30. Bb6 {[%clk 0:00:19.4]} 30...
Qc6 {[%clk 0:00:14.2]} 31. Qf3 {[%clk 0:00:17.8]} 31... Qxb6 {[%clk 0:00:13.6]}
32. Ned4 {[%clk 0:00:16.5]} 32... e5 {[%clk 0:00:11.8]} 33. fxe5 {[%clk
0:00:13.2]} 33... dxe5 {[%clk 0:00:12.7]} 34. Rf1 {[%clk 0:00:12.5]} 34... Bf4+
{[%clk 0:00:12.4]} 35. Kg1 {[%clk 0:00:08.3]} 35... Nd2 {[%clk 0:00:11.7]} 36.
Qe2 {[%clk 0:00:04]} 36... Nxf1 {[%clk 0:00:11.4]} 37. Rxf1 {[%clk 0:00:02.3]}
37... Rd8 {[%clk 0:00:10.7]} 38. Rxf4 {[%clk 0:00:01.6]} 38... exf4 {[%clk
0:00:10.4]} 39. Qe7 {[%clk 0:00:01.2]} 39... Qd6 {[%clk 0:00:10.3]} 0-1